bitfinex/quotes_ETHUSD_20250726
["timestamp","ask_amount","ask_price","bid_price","bid_amount"]
[1753567991944,0.002,3764.0,3763.9,4.55944873]
[1753567992116,0.24857128,3765.2,3764.7,0.8175]
[1753567992310,3.0,3764.9,3764.4,0.8175]
[1753567992655,2.65674814,3764.0,3763.9,1e-08]
[1753567992822,6.80074814,3764.0,3763.9,1e-08]
[1753567993023,6.80074814,3764.0,3763.9,0.49900001]
[1753567993229,6.80074814,3764.0,3763.9,0.95210001]
[1753567995439,0.002,3764.0,3763.9,0.95210001]
[1753567995659,4.143,3764.0,3763.9,0.95210001]
[1753567996371,0.002,3764.0,3763.9,0.95210001]
[1753567996534,4.142,3764.0,3763.9,4.8690712]
[1753567996732,0.002,3764.0,3763.9,4.8690712]
[1753567997252,4.141,3764.0,3763.9,4.89563938]
[1753567997458,4.141,3764.0,3763.9,4.8690712]
[1753567998420,0.002,3764.0,3763.9,4.8690712]
[1753567999372,0.002,3764.0,3763.9,5.0018712]
[1753568008877,0.002,3764.0,3763.9,5.02843938]
[1753568010449,0.002,3764.0,3763.9,5.0018712]
[1753568011682,0.002,3764.0,3763.9,4.6130892]
[1753568016960,0.002,3764.0,3763.9,4.6140892]
[1753568023297,0.002,3764.0,3763.9,4.64065738]
[1753568024159,0.002,3764.0,3763.9,12.03663744]
[1753568024475,0.002,3764.0,3763.9,15.56006926]
[1753568028583,1e-08,3764.0,3763.9,15.56006926]
[1753568033998,1e-08,3764.0,3763.9,12.16487119]
[1753568034296,1e-08,3764.0,3763.9,12.64037119]
[1753568041677,0.002,3764.8,3764.7,3.48155415]
[1753568042178,0.002,3764.8,3764.7,4.08091669]
[1753568043825,0.002,3764.8,3764.7,3.64091669]
[1753568044132,0.002,3764.8,3764.7,3.61435415]
[1753568045140,0.4976,3764.8,3764.7,2.78905415]
[1753568045348,0.9291,3764.8,3764.7,0.1328]
[1753568045641,1.09851,3764.8,3764.7,0.1328]
[1753568045842,1.09851,3764.8,3764.6,0.1328]
[1753568046034,0.9271,3764.7,3764.6,0.1328]
[1753568046549,0.9271,3764.7,3764.6,2.7891247]
[1753568047012,0.4956,3764.7,3764.6,2.7891247]
[1753568047922,0.9271,3764.7,3764.6,0.1328]
[1753568051332,0.9271,3764.7,3764.6,2.7891247]
[1753568053754,0.4956,3764.7,3764.6,2.7891247]
[1753568055863,3.4213247,3764.6,3763.4,0.001]
[1753568056158,3.5549011,3763.5,3763.4,0.001]
[1753568056336,11.97964145,3763.5,3763.4,0.001]
[1753568056530,12.75927522,3763.5,3763.4,0.001]
[1753568056730,11.71895278,3763.5,3763.4,0.001]
[1753568056935,11.84929109,3763.5,3763.4,0.001]
[1753568057136,12.04125924,3763.5,3763.4,0.001]
[1753568059435,11.79240756,3763.5,3763.4,0.001]
[1753568059638,11.44030756,3763.5,3763.4,0.001]
[1753568059875,8.44030756,3763.5,3763.4,0.001]
[1753568061063,5.4609,3763.5,3763.4,0.001]
[1753568061266,4.11,3763.5,3763.4,0.001]
[1753568061772,4.11,3763.5,3763.4,0.4688]
[1753568062175,0.7924,3763.8,3763.4,0.4688]
[1753568062343,4.11,3763.9,3763.5,0.954]
[1753568062536,4.11,3763.9,3763.5,1.0868]
[1753568063768,4.11,3763.9,3763.5,0.6006]
[1753568064083,4.5631,3763.9,3763.5,0.6006]
[1753568064579,2.6570305,3763.6,3763.5,0.1328]
[1753568064878,6.47004231,3763.3,3763.2,0.001]
[1753568065052,10.83253341,3763.3,3763.2,0.001]
[1753568065254,11.77153341,3763.3,3763.2,0.001]
[1753568065454,12.38550821,3763.3,3763.2,0.001]
[1753568065980,43.06513143,3763.3,3763.2,0.001]
[1753568066176,42.93550821,3763.3,3763.2,0.001]
[1753568066681,43.0650676,3763.3,3763.2,0.001]
[1753568066974,13.0650676,3763.3,3763.2,0.001]
[1753568067156,12.93550821,3763.3,3763.2,0.001]
[1753568067769,12.38550821,3763.3,3763.2,0.001]
[1753568067970,12.1381164,3763.3,3763.2,0.001]
[1753568071513,11.7850164,3763.3,3763.2,0.001]
[1753568071864,11.7830164,3763.3,3763.2,0.001]
[1753568072262,4.55967409,3763.3,3763.2,0.001]
[1753568072564,8.67167409,3763.3,3763.2,0.001]
[1753568073382,11.3289164,3763.3,3763.2,0.001]
[1753568073601,8.67167409,3763.3,3763.2,0.001]
[1753568075222,11.3289164,3763.3,3763.2,0.001]
[1753568076593,8.67167409,3763.3,3763.2,0.001]
[1753568078489,11.3289164,3763.3,3763.2,0.001]
[1753568078908,11.7820164,3763.3,3763.2,0.001]
[1753568080201,11.45866,3763.3,3763.2,0.001]
[1753568080427,11.3289164,3763.3,3763.2,0.001]
[1753568081424,11.70642311,3763.3,3763.2,0.001]
[1753568082414,11.7064955,3763.3,3763.2,0.001]
[1753568082951,11.70663342,3763.3,3763.2,0.001]
[1753568083369,9.04939111,3763.3,3763.2,0.001]
[1753568083550,8.43531702,3763.3,3763.2,0.001]
[1753568084054,7.62251702,3763.3,3763.2,0.001]
[1753568084424,10.27975933,3763.3,3763.2,0.001]
[1753568085981,10.28012075,3763.3,3763.2,0.001]
[1753568086260,10.77492075,3763.3,3763.2,0.001]
[1753568086634,10.92409919,3763.3,3763.2,0.001]
[1753568087528,10.77492075,3763.3,3763.2,0.001]
[1753568088650,10.9240982,3763.3,3763.2,0.001]
[1753568088849,10.77570815,3763.3,3763.2,0.001]
[1753568089250,10.28090815,3763.3,3763.2,0.001]
[1753568089454,10.77570815,3763.3,3763.2,0.001]
[1753568090424,10.92489372,3763.3,3763.2,0.001]
[1753568090862,10.77570815,3763.3,3763.2,0.001]
[1753568091162,10.92489163,3763.3,3763.2,0.001]
[1753568091360,10.92495508,3763.3,3763.2,0.001]
[1753568092862,10.43015508,3763.3,3763.2,0.001]
[1753568093964,10.43026386,3763.3,3763.2,0.001]
[1753568097086,9.90204231,3763.3,3763.2,0.001]
[1753568097681,10.43111406,3763.3,3763.2,0.001]
[1753568097891,10.18202598,3763.3,3763.2,0.001]
[1753568098092,10.43111585,3763.3,3763.2,0.001]
[1753568098660,10.43112888,3763.3,3763.2,0.001]
[1753568101758,11.86173443,3763.3,3763.2,0.001]
[1753568102062,11.92392888,3763.3,3763.2,0.001]
[1753568102257,4.30678657,3763.3,3763.2,0.001]
[1753568102462,11.07402888,3763.3,3763.2,0.001]
[1753568102895,10.29632888,3763.3,3763.2,0.4688]
[1753568103401,10.29632888,3763.3,3763.2,0.001]
[1753568103777,7.4896207,3763.3,3763.2,0.001]
[1753568104380,10.14686301,3763.3,3763.2,0.001]
[1753568104579,7.4896207,3763.3,3763.2,0.001]
[1753568109418,10.99476301,3763.3,3763.2,0.001]
[1753568109620,19.08160302,3763.3,3763.2,0.001]
[1753568110293,49.63160302,3763.3,3763.2,0.001]
[1753568111999,49.76440302,3763.3,3763.2,0.001]
[1753568112900,49.76427029,3763.3,3763.2,0.001]
[1753568117420,49.41117029,3763.3,3763.2,0.001]
[1753568119149,49.03154959,3763.3,3763.2,0.001]
[1753568119439,49.41069306,3763.3,3763.2,0.001]
[1753568119798,49.26128577,3763.3,3763.2,0.001]
[1753568120004,49.41055769,3763.3,3763.2,0.001]
[1753568120532,49.41054602,3763.3,3763.2,0.001]
[1753568120833,6.9624073,3762.5,3762.4,0.001]
[1753568121033,55.01453909,3762.5,3762.4,0.001]
[1753568121236,55.14733909,3762.5,3762.4,0.001]
[1753568121422,6.20787795,3762.4,3762.3,1e-08]
[1753568121624,38.16990975,3762.4,3762.3,1e-08]
[1753568122144,40.25949163,3761.9,3761.6,0.001]
[1753568122433,44.49878777,3761.9,3761.6,0.001]
[1753568122615,44.63158777,3761.9,3761.6,0.001]
[1753568123046,45.10678777,3761.9,3761.6,0.001]
[1753568123521,41.40971963,3761.9,3761.6,0.001]
[1753568124546,41.88491963,3761.9,3761.6,0.001]
[1753568124711,42.13343637,3761.9,3761.6,0.001]
[1753568124909,42.13343737,3761.9,3761.6,0.001]
[1753568125139,41.65823737,3761.9,3761.6,0.001]
[1753568125360,11.88491963,3761.9,3761.6,0.001]
[1753568125644,36.20837254,3761.7,3761.6,1e-08]
[1753568125939,44.4989291,3761.7,3761.6,1e-08]
[1753568126335,44.9741291,3761.7,3761.6,1e-08]
[1753568126539,45.3272291,3761.7,3761.6,1e-08]
[1753568126749,45.57560715,3761.7,3761.6,1e-08]
[1753568126950,2.65891775,3761.0,3760.7,0.001]
[1753568127154,6.20900872,3760.8,3760.7,0.001]
[1753568127337,20.53450871,3760.8,3760.7,0.001]
[1753568127720,20.66449776,3760.8,3760.7,0.001]
[1753568127915,21.06178258,3760.8,3760.7,0.001]
[1753568128311,20.91280077,3760.8,3760.7,0.001]
[1753568128613,20.9123059,3760.8,3760.7,0.001]
[1753568128830,20.3623059,3760.8,3760.7,0.001]
[1753568129060,24.64450871,3760.8,3760.7,0.001]
[1753568129256,24.77903883,3760.8,3760.7,0.001]
[1753568130276,24.90880943,3760.8,3760.7,0.001]
[1753568130970,24.90872658,3760.8,3760.7,0.001]
[1753568131124,55.15645187,3760.8,3760.7,0.001]
[1753568131423,24.77903883,3760.8,3760.7,0.001]
[1753568132280,24.77903883,3760.8,3760.3,0.9485]
[1753568132281,3.20927142,3760.5,3760.2,0.001]
[1753568132427,35.65936228,3760.3,3760.2,0.001]
[1753568132773,4.11,3760.3,3760.2,0.7542]
[1753568133063,4.11,3760.3,3760.2,1.7027]
[1753568133267,13.56499999,3760.8,3760.2,1.7027]
[1753568133483,13.56499999,3760.8,3760.2,0.92457]
[1753568133774,4.11,3760.7,3760.4,0.7532]
[1753568134138,4.11,3760.7,3760.6,0.7532]
[1753568134326,4.11,3760.7,3760.6,1.7017]
[1753568134525,6.385,3760.8,3760.7,2.65907942]
[1753568134760,10.495,3760.8,3760.7,0.7532]
[1753568134960,10.495,3760.8,3760.7,1.7017]
[1753568135465,10.495,3760.8,3760.7,4.36077942]
[1753568138136,10.495,3760.8,3760.7,1.7017]
[1753568138463,10.495,3760.8,3760.7,1.2202]
[1753568138665,2.6592352,3760.5,3760.2,0.001]
[1753568138973,5.79216228,3760.3,3760.2,0.001]
[1753568139532,6.26736228,3760.3,3760.2,0.001]
[1753568140271,5.79216228,3760.3,3760.2,0.001]
[1753568141369,9.90116228,3760.3,3760.2,0.9495]
[1753568141571,9.90116228,3760.3,3760.2,0.468]
[1753568141773,9.90116228,3760.3,3760.2,0.001]
[1753568142073,10.75746783,3760.3,3760.2,0.001]
[1753568142456,10.28226783,3760.3,3760.2,0.001]
[1753568147173,3.1328,3760.3,3760.2,0.8997]
[1753568147374,7.2418,3760.3,3760.2,0.001]
[1753568147897,9.90116228,3760.3,3760.2,0.001]
[1753568148440,9.90116228,3760.3,3760.2,0.4471]
[1753568149778,9.90116228,3760.3,3760.2,0.001]
[1753568150342,10.14936376,3760.3,3760.2,0.001]
[1753568150678,10.14935733,3760.3,3760.2,0.001]
[1753568151458,10.14945327,3760.3,3760.2,0.001]
[1753568153266,10.27950716,3760.3,3760.2,0.001]
[1753568153582,11.57270729,3760.3,3760.2,0.001]
[1753568154105,41.57270729,3760.3,3760.2,0.001]
[1753568154702,11.57270729,3760.3,3760.2,0.001]
[1753568155361,11.57300912,3760.3,3760.2,0.001]
[1753568158769,11.19436228,3760.3,3760.2,0.001]
[1753568159801,11.32452196,3760.3,3760.2,0.001]
[1753568160385,11.19436228,3760.3,3760.2,0.001]
[1753568160563,6.85679477,3760.3,3760.2,0.001]
[1753568160769,10.27894628,3760.3,3760.2,0.4471]
[1753568161170,6.17094628,3760.3,3760.2,0.4471]
[1753568161409,10.27894628,3760.3,3760.2,0.4471]
[1753568162704,10.27894084,3760.3,3760.2,0.4471]
[1753568162933,3.51157856,3760.3,3760.2,0.4471]
[1753568163217,10.27894084,3760.3,3760.2,0.8997]
[1753568166221,3.51157856,3760.3,3760.2,0.8997]
[1753568166422,7.61857856,3760.3,3760.2,0.8997]
[1753568166983,7.48843249,3760.3,3760.2,0.8997]
[1753568167184,7.61879758,3760.3,3760.2,0.8997]
[1753568167517,3.51179758,3760.3,3760.2,0.8997]
[1753568167728,0.24863249,3760.3,3760.2,1.6757]
[1753568168017,0.002,3760.5,3760.4,0.776]
[1753568168178,4.109,3760.5,3760.4,0.776]
[1753568168384,4.109,3760.5,3760.4,1.6747]
[1753568176912,4.109,3760.5,3760.4,1.2221]
[1753568177231,6.76822084,3760.5,3760.4,1.2221]
[1753568177722,6.76822084,3760.5,3760.4,1.6985]
[1753568178146,9.76822084,3760.5,3760.2,0.001]
[1753568178311,9.76822084,3760.5,3760.3,0.9398]
[1753568178312,0.1328,3760.4,3760.3,0.9398]
[1753568178633,4.105,3760.4,3760.3,1.7675]
[1753568179039,0.002,3760.5,3760.3,1.7675]
[1753568179040,0.002,3760.5,3760.4,2.65929156]
[1753568179210,4.106,3760.5,3760.4,3.97698447]
[1753568179415,4.106,3760.5,3760.4,1.7675]
[1753568182012,4.106,3760.5,3760.4,0.8277]
[1753568182210,4.106,3760.5,3760.4,1.2911]
[1753568182830,4.106,3760.5,3760.4,0.8277]
[1753568183604,4.106,3760.5,3760.2,0.4644]
[1753568183926,4.106,3760.5,3760.3,0.4634]
[1753568185138,4.106,3760.5,3760.3,0.9398]
[1753568185837,6.76522985,3760.5,3760.3,0.9398]
[1753568186202,4.106,3760.5,3760.3,0.9398]
[1753568187104,4.106,3760.5,3760.3,0.4634]
[1753568188040,4.106,3760.5,3760.4,0.9398]
[1753568189241,4.106,3760.5,3760.4,3.59909156]
[1753568189242,0.002,3760.5,3760.4,3.59909156]
[1753568189449,4.105,3760.5,3760.4,1.7378]
[1753568191955,4.105,3760.5,3760.4,4.39709156]
[1753568192250,4.105,3760.5,3760.4,4.52989156]
[1753568193156,4.105,3760.5,3760.4,1.8706]
[1753568193946,4.105,3760.5,3760.4,4.52989156]
[1753568195140,4.105,3760.5,3760.4,1.8706]
[1753568195462,4.105,3760.5,3760.4,4.52989156]
[1753568197646,4.105,3760.5,3760.4,1.8706]
[1753568198982,4.105,3760.5,3760.4,1.3942]
[1753568200319,4.5847,3760.5,3760.3,0.001]
[1753568200518,3.87605779,3760.4,3760.3,0.001]
[1753568200723,3.98229156,3760.4,3760.3,0.001]
[1753568201432,1.323,3760.4,3760.3,0.001]
[1753568201746,0.6125,3760.4,3760.3,0.001]
[1753568202826,0.1328,3760.4,3760.3,0.001]
[1753568203017,4.101,3760.4,3760.3,0.001]
[1753568203621,4.586,3760.4,3760.3,0.001]
[1753568203816,4.61256623,3760.4,3760.3,0.001]
[1753568204560,4.586,3760.4,3760.3,0.001]
[1753568208356,4.101,3760.4,3760.3,0.001]
[1753568213347,7.27185779,3760.4,3760.3,0.001]
[1753568213674,4.586,3760.4,3760.3,0.001]
[1753568213851,4.61256623,3760.4,3760.3,0.001]
[1753568214045,7.27185779,3760.4,3760.3,0.001]
[1753568214264,5.7047865,3760.4,3760.3,0.001]
[1753568215667,8.36407806,3760.4,3760.3,0.001]
[1753568216240,5.7047865,3760.4,3760.3,0.001]
[1753568216442,8.36407806,3760.4,3760.3,0.001]
[1753568218270,5.7047865,3760.4,3760.3,0.001]
[1753568218577,8.36407806,3760.4,3760.3,0.001]
[1753568220642,5.7047865,3760.4,3760.3,0.001]
[1753568221143,4.101,3760.4,3760.3,0.001]
[1753568221341,0.1348,3760.5,3760.3,0.9611]
[1753568221558,4.098,3760.4,3760.3,0.001]
[1753568221750,0.1348,3760.5,3760.3,0.001]
[1753568221751,0.002,3760.5,3760.3,0.001]
[1753568221974,4.098,3760.4,3760.3,2.79316228]
[1753568222950,4.098,3760.4,3760.3,3.75326228]
[1753568225138,4.098,3760.4,3760.3,1.0939]
[1753568225771,4.098,3760.4,3760.3,0.6002]
[1753568225977,4.098,3760.4,3760.3,0.4674]
[1753568226338,4.098,3760.4,3760.3,0.001]
[1753568227578,8.11278071,3760.4,3760.3,0.001]
[1753568227769,4.7158,3760.4,3760.3,0.001]
[1753568227959,7.37509156,3760.4,3760.3,0.001]
[1753568230857,8.94079108,3760.4,3760.3,0.001]
[1753568231207,8.94079133,3760.4,3760.3,0.001]
[1753568231365,8.58769133,3760.4,3760.3,0.001]
[1753568231568,9.71256674,3760.4,3760.3,0.001]
[1753568231895,9.71254914,3760.4,3760.3,0.001]
[1753568232093,13.06564914,3760.4,3760.3,0.001]
[1753568232295,50.24564913,3760.4,3760.3,0.001]
[1753568233958,20.24364913,3760.4,3760.3,0.001]
[1753568234955,50.24364913,3760.4,3760.3,0.001]
[1753568235895,50.39312216,3760.4,3760.3,0.001]
[1753568236498,50.94312216,3760.4,3760.3,0.001]
[1753568236794,20.94312216,3760.4,3760.3,0.001]
[1753568237400,50.94312216,3760.4,3760.3,0.001]
[1753568237695,20.94312216,3760.4,3760.3,0.001]
[1753568237902,20.79364913,3760.4,3760.3,0.001]
[1753568238996,20.58989213,3760.4,3760.3,0.001]
[1753568239301,20.44054913,3760.4,3760.3,0.001]
[1753568239898,18.57274913,3760.4,3760.3,0.4504]
[1753568240205,18.57274913,3760.4,3760.3,0.9443]
[1753568240585,11.81745757,3760.4,3760.3,0.9443]
[1753568240897,0.002,3760.5,3760.4,2.65929156]
[1753568241088,4.097,3760.5,3760.4,3.45529156]
[1753568241287,4.097,3760.5,3760.4,4.39859156]
[1753568241662,0.002,3760.5,3760.4,4.39859156]
[1753568241898,4.097,3760.5,3760.4,4.39859156]
[1753568242487,4.097,3760.5,3760.4,5.11797381]
[1753568243325,4.097,3760.5,3760.4,4.39859156]
[1753568243817,4.097,3760.5,3760.4,1.7393]
[1753568245206,4.097,3760.5,3760.3,0.001]
[1753568245555,4.2298,3760.5,3760.4,0.9433]
[1753568245808,4.2298,3760.5,3760.4,1.7386]
[1753568246679,4.097,3760.5,3760.4,1.7386]
[1753568247002,4.096,3760.5,3760.4,1.7386]
[1753568250111,6.75528771,3760.5,3760.3,0.001]
[1753568250406,4.96714539,3760.5,3760.3,0.001]
[1753568250568,4.25536623,3760.5,3760.3,0.9443]
[1753568250981,4.2288,3760.5,3760.3,0.4504]
[1753568252210,4.2288,3760.5,3760.4,0.4494]
[1753568252376,4.2288,3760.5,3760.4,0.9433]
[1753568252577,4.2278,3760.5,3760.4,0.9433]
[1753568253173,4.2278,3760.5,3760.4,0.4494]
[1753568254114,4.2278,3760.5,3760.3,0.7966]
[1753568254475,4.2278,3760.5,3760.3,0.001]
[1753568254675,4.6966,3760.5,3760.3,0.001]
[1753568255912,4.2278,3760.5,3760.3,0.001]
[1753568256514,4.2278,3760.5,3760.3,0.4504]
[1753568257999,4.2278,3760.5,3760.3,0.9443]
[1753568259124,4.2278,3760.5,3760.4,0.9433]
[1753568263096,0.1348,3760.5,3760.4,0.9433]
[1753568263297,4.2258,3760.5,3760.4,0.9433]
[1753568263790,4.093,3760.5,3760.4,0.9433]
[1753568264109,4.093,3760.5,3760.4,3.60259156]
[1753568266451,0.002,3760.5,3760.4,3.60259156]
[1753568266601,4.092,3760.5,3760.4,5.0009739]
[1753568266802,0.002,3760.5,3760.4,5.0009739]
[1753568267500,1e-08,3760.5,3760.4,5.5509739]
[1753568267695,1e-08,3760.5,3760.4,9.6409739]
[1753568273152,1e-08,3760.5,3760.4,12.6409739]
[1753568282641,1e-08,3761.3,3761.1,1.3042]
[1753568282940,1e-08,3761.3,3761.2,14.7667244]
[1753568283153,1e-08,3761.3,3761.2,14.87293715]
[1753568283590,1e-08,3761.3,3761.2,15.82953715]
[1753568287165,1e-08,3761.3,3761.2,10.78593715]
[1753568287360,1e-08,3761.3,3761.2,14.87093715]
[1753568287562,1e-08,3761.3,3761.2,15.82753715]
[1753568292014,1e-08,3762.1,3762.0,3.96926055]
[1753568292180,1e-08,3762.1,3762.0,11.37375198]
[1753568292501,1e-08,3762.1,3762.0,12.40767038]
[1753568293195,1e-08,3762.1,3762.0,11.47997038]
[1753568295276,1e-08,3762.1,3762.0,12.40767038]
[1753568295494,1e-08,3762.1,3762.0,13.91426236]
[1753568295689,1e-08,3762.1,3762.0,16.91426236]
[1753568303133,1e-08,3762.1,3762.0,12.83026236]
[1753568303338,1e-08,3762.1,3762.0,16.91126236]
[1753568305347,1e-08,3762.9,3762.7,0.55]
[1753568305656,1e-08,3762.9,3762.8,14.44098118]
[1753568305954,1e-08,3762.9,3762.8,15.02180523]
[1753568308147,1e-08,3762.9,3762.8,14.54720523]
[1753568311257,1e-08,3762.9,3762.8,15.02180523]
[1753568311465,1e-08,3762.9,3762.8,17.24285405]
[1753568311872,0.8112,3763.9,3762.8,17.24285405]
[1753568311873,1e-08,3764.5,3764.1,2.65667755]
[1753568312073,0.3551,3764.8,3764.7,2.65625415]
[1753568312370,0.3551,3764.8,3764.7,6.73525415]
[1753568312534,0.8414,3764.8,3764.7,6.73525415]
[1753568316277,0.8414,3764.8,3764.7,2.65625415]
[1753568319184,0.4883,3764.8,3764.7,2.65625415]
[1753568319393,0.4883,3764.8,3764.7,4.09647666]
[1753568319394,0.002,3764.8,3764.7,4.09647666]
[1753568319678,0.002,3764.8,3764.7,4.54957666]
[1753568319898,0.002,3764.8,3764.7,7.54957666]
[1753568320181,0.002,3764.8,3764.7,7.52301412]
[1753568320388,0.002,3764.8,3764.7,7.06991412]
[1753568321599,0.002,3764.8,3764.7,4.06991412]
[1753568321904,0.002,3764.8,3764.7,4.09647666]
[1753568322067,0.002,3764.8,3764.7,4.22927666]
[1753568322574,0.002,3764.8,3764.7,3.75467666]
[1753568323193,0.002,3764.8,3764.7,3.72811412]
[1753568323500,0.4661,3764.8,3764.7,6.86605415]
[1753568323671,0.8192,3764.8,3764.7,6.86605415]
[1753568324000,0.4661,3764.8,3764.7,6.86605415]
[1753568324366,0.002,3764.8,3764.7,6.86605415]
[1753568325792,0.002,3764.8,3764.7,7.29895415]
[1753568326097,0.002,3764.8,3764.7,8.74468412]
[1753568326392,0.002,3764.8,3764.7,9.29468412]
[1753568327692,0.002,3764.8,3764.7,11.84448412]
[1753568327992,0.002,3764.8,3764.7,12.29468412]
[1753568328201,0.002,3764.8,3764.7,11.84448412]
[1753568328438,0.002,3765.5,3764.9,3.20611304]
[1753568328727,0.002,3765.5,3765.4,2.65576034]
[1753568328930,0.002,3765.5,3765.4,6.75831794]
[1753568329138,0.002,3765.5,3765.4,8.29766034]
[1753568329502,1e-08,3765.5,3765.4,8.29766034]
[1753568329733,1e-08,3765.5,3765.4,9.8025222]
[1753568331920,1e-08,3765.6,3765.5,2.65568981]
[1753568332137,1e-08,3765.9,3765.8,2.65547825]
[1753568332305,1e-08,3765.9,3765.8,11.14361445]
[1753568332508,1e-08,3765.9,3765.8,12.00015967]
[1753568333939,1e-08,3765.9,3765.8,7.04205967]
[1753568334114,1e-08,3765.9,3765.8,11.11705967]
[1753568334942,1e-08,3765.9,3765.8,12.55015967]
[1753568335937,1e-08,3765.9,3765.8,11.66605967]
[1753568336847,1e-08,3765.9,3765.8,12.54915967]
[1753568339443,1e-08,3765.9,3765.8,7.59205967]
[1753568339642,0.46410001,3765.9,3765.8,11.11605967]
[1753568339997,0.46410001,3765.9,3765.8,7.04205967]
[1753568340197,0.46410001,3765.9,3765.8,11.11605967]
[1753568341509,0.46410001,3765.9,3765.8,11.11505967]
[1753568341909,1e-08,3765.9,3765.8,7.04205967]
[1753568342130,1e-08,3765.9,3765.8,13.49545967]
[1753568343312,1e-08,3765.9,3765.8,13.04525967]
[1753568343519,1e-08,3765.9,3765.8,11.79785967]
[1753568343817,0.46410001,3765.9,3765.8,11.79785967]
[1753568344350,1e-08,3765.9,3765.8,11.79785967]
[1753568347448,1e-08,3765.9,3765.8,12.23075967]
[1753568348029,1e-08,3765.9,3765.8,11.79785967]
[1753568352403,1e-08,3765.9,3765.8,13.45135967]
[1753568356110,0.45040001,3765.9,3765.8,11.11305967]
[1753568356751,1e-08,3765.9,3765.8,11.11305967]
[1753568356904,1e-08,3765.9,3765.8,11.66305967]
[1753568358955,0.45040001,3765.9,3765.8,11.66305967]
[1753568360051,1e-08,3765.9,3765.8,11.66305967]
[1753568360258,1e-08,3765.9,3765.8,12.56225967]
[1753568360556,1e-08,3765.9,3765.8,13.35465967]
[1753568366377,1e-08,3765.9,3765.8,13.48745967]
[1753568367174,1e-08,3765.9,3765.8,12.58725967]
[1753568367486,1e-08,3765.9,3765.8,13.48645967]
[1753568373968,1e-08,3765.9,3765.8,8.51725967]
[1753568374265,0.45040001,3765.9,3765.8,11.79385967]
[1753568375477,0.45040001,3765.9,3765.8,11.99204488]
[1753568376974,1e-08,3765.9,3765.8,11.99204488]
[1753568377492,1e-08,3765.9,3765.8,13.65684488]
[1753568379889,1e-08,3765.9,3765.8,13.45865967]
[1753568380392,1e-08,3765.9,3765.8,12.56045967]
[1753568380691,0.45040001,3765.9,3765.8,11.79385967]
[1753568381193,1e-08,3765.9,3765.8,11.79385967]
[1753568381415,1e-08,3765.9,3765.8,12.69305967]
[1753568382493,1e-08,3765.9,3765.8,11.79385967]
[1753568383064,1e-08,3765.9,3765.8,12.68895967]
[1753568383263,1e-08,3765.9,3765.8,13.44655967]
[1753568384397,1e-08,3765.9,3765.8,13.64746106]
[1753568384581,0.002,3766.4,3766.3,6.96272572]
[1753568384582,1e-08,3766.4,3766.3,6.96272572]
[1753568384765,1e-08,3766.4,3766.3,11.16352572]
[1753568384967,1e-08,3766.7,3766.6,6.20491424]
[1753568385293,1e-08,3766.7,3766.6,11.03051424]
[1753568385495,1e-08,3766.7,3766.6,12.05841424]
[1753568385695,1e-08,3766.7,3766.6,13.79526857]
[1753568388563,1e-08,3766.7,3766.6,8.07456857]
[1753568388796,0.47740001,3766.7,3766.6,12.14156857]
[1753568388994,1e-08,3766.7,3766.6,8.07456857]
[1753568389296,1e-08,3766.7,3766.6,6.85471424]
[1753568389496,1e-08,3766.7,3766.6,3.77651424]
[1753568389701,1e-08,3766.7,3766.6,8.32636338]
[1753568389901,1e-08,3766.7,3766.6,10.84351424]
[1753568390202,1e-08,3766.7,3766.6,6.33771424]
[1753568390400,0.47740001,3766.7,3766.6,11.68348857]
[1753568390969,1.29550001,3766.7,3766.6,7.06648857]
[1753568391284,1.64860001,3766.7,3766.6,6.84341424]
[1753568391629,0.1328,3768.0,3766.6,6.84341424]
[1753568391630,4.65308528,3772.1,3772.0,3.46521346]
[1753568391904,0.4597,3774.4,3774.0,2.64970853]
[1753568392201,0.4597,3774.4,3772.0,9.40577036]
[1753568392202,0.9371,3774.3,3774.1,0.02649638]
[1753568392412,4.99547901,3775.2,3774.1,0.57649638]
[1753568392730,0.51000623,3775.1,3774.2,0.14634834]
[1753568392877,1.7552,3775.0,3774.3,0.14634834]
[1753568393076,0.4597,3774.9,3774.4,0.14634834]
[1753568393375,0.4774,3774.8,3774.5,0.14634834]
[1753568393571,0.4774,3774.8,3774.6,0.14634834]
[1753568393804,5.8781,3774.7,3773.7,2.64987662]
[1753568394008,3.4597,3774.6,3774.0,2.64969093]
[1753568394213,0.4597,3774.5,3774.1,2.79536031]
[1753568394519,5.4224,3774.4,3774.2,0.14573847]
[1753568394678,3.9371,3774.3,3773.6,2.64994798]
[1753568395018,7.96,3774.2,3773.7,0.14536748]
[1753568395173,0.4774,3774.3,3774.2,2.64956812]
[1753568395370,0.9371,3774.3,3774.2,0.14536748]
[1753568396219,5.9131,3774.3,3774.2,0.14536748]
[1753568396806,0.9371,3774.3,3774.2,0.14536748]
[1753568398218,0.9371,3774.3,3774.1,1.41154095]
[1753568398219,0.7915,3774.2,3774.1,1.41154095]
[1753568398401,9.7086,3774.2,3774.1,1.41154095]
[1753568398581,9.7086,3774.2,3773.1,0.0265034]
[1753568398582,3.0,3774.1,3774.0,1.41154095]
[1753568398784,3.9371,3774.1,3773.9,0.92996843]
[1753568399024,3.0,3774.1,3774.0,0.69758741]
[1753568399380,0.7915,3774.2,3773.7,0.69758741]
[1753568399575,0.7915,3774.2,3773.9,0.69758741]
[1753568399576,0.9371,3774.1,3773.9,0.69758741]
[1753568399783,3.9371,3774.0,3773.5,0.92996843]
[1753568399990,5.9221,3773.9,3773.5,0.92996843]
[1753568400309,5.9221,3773.8,3773.7,0.92996843]